[Event "Live Chess"]
[Site "Chess.com"]
[Date "2023.05.20"]
[Round "-"]
[White "Ian-Morley"]
[Black "chessleanstrategist"]
[Result "1/2-1/2"]
[WhiteElo "952"]
[BlackElo "407"]
[TimeControl "300"]
[EndTime "13:35:55 PDT"]
[Termination "Game drawn by agreement"]

1. e4 {[%clk 0:04:57.2]} 1... d6 {[%clk 0:04:58.8]} 2. d4 {[%clk 0:04:53.7]}
2... Nf6 {[%clk 0:04:58.4]} 3. e5 {[%clk 0:04:42.4]} 3... dxe5 {[%clk
0:04:53.7]} 4. dxe5 {[%clk 0:04:41.2]} 4... Qxd1+ {[%clk 0:04:53.4]} 5. Kxd1
{[%clk 0:04:39.1]} 5... Nfd7 {[%clk 0:04:52.4]} 6. f4 {[%clk 0:04:35.3]} 6... e6
{[%clk 0:04:44.3]} 7. Bb5 {[%clk 0:03:40.9]} 7... c6 {[%clk 0:04:39.9]} 8. Bd3
{[%clk 0:03:36]} 8... g6 {[%clk 0:04:37.5]} 9. Nf3 {[%clk 0:03:34.5]} 9... Bg7
{[%clk 0:04:36.5]} 10. Bd2 {[%clk 0:03:24.1]} 10... O-O {[%clk 0:04:34.2]} 11.
Nc3 {[%clk 0:03:15.5]} 11... b5 {[%clk 0:04:32.9]} 12. Ne4 {[%clk 0:03:10.1]}
12... f5 {[%clk 0:04:25.6]} 13. Nd6 {[%clk 0:02:41.2]} 13... Na6 {[%clk
0:04:07.7]} 14. Ng5 {[%clk 0:02:33.3]} 14... Nac5 {[%clk 0:03:29.2]} 15. b4
{[%clk 0:02:27.9]} 15... Nxd3 {[%clk 0:03:27.8]} 16. cxd3 {[%clk 0:02:23.4]}
16... c5 {[%clk 0:03:21.5]} 17. bxc5 {[%clk 0:02:13.1]} 17... Nxc5 {[%clk
0:03:12.4]} 18. Nxc8 {[%clk 0:01:27.4]} 18... Raxc8 {[%clk 0:03:08.7]} 19. d4
{[%clk 0:01:25.8]} 19... Ne4 {[%clk 0:03:05.5]} 20. Nxe6 {[%clk 0:01:23.9]}
20... Rfe8 {[%clk 0:02:57.5]} 21. Nxg7 {[%clk 0:01:21.7]} 21... Kxg7 {[%clk
0:02:56.1]} 22. Rf1 {[%clk 0:01:17.7]} 22... Nxd2 {[%clk 0:02:54.2]} 23. Kxd2
{[%clk 0:01:15.8]} 23... Rc4 {[%clk 0:02:48.7]} 24. Rac1 {[%clk 0:01:14]} 24...
Rxd4+ {[%clk 0:02:36.6]} 25. Ke3 {[%clk 0:01:10]} 25... Red8 {[%clk 0:02:33.7]}
26. Rc3 {[%clk 0:01:02.2]} 26... b4 {[%clk 0:02:24.7]} 27. Rb3 {[%clk
0:01:00.1]} 27... a5 {[%clk 0:02:22.4]} 28. a3 {[%clk 0:00:57.9]} 28... bxa3
{[%clk 0:02:15.3]} 29. Rxa3 {[%clk 0:00:56.3]} 29... R4d5 {[%clk 0:02:03.8]} 30.
e6 {[%clk 0:00:54.7]} 30... Kf6 {[%clk 0:02:02.4]} 31. Kf3 {[%clk 0:00:44.8]}
31... Kxe6 {[%clk 0:02:00.8]} 32. Re1+ {[%clk 0:00:43.4]} 32... Kf6 {[%clk
0:01:58.8]} 33. Re5 {[%clk 0:00:40.1]} 33... Rd3+ {[%clk 0:01:42]} 34. Rxd3
{[%clk 0:00:36]} 34... Rxd3+ {[%clk 0:01:41.7]} 35. Re3 {[%clk 0:00:34.7]} 35...
Rxe3+ {[%clk 0:01:38.8]} 36. Kxe3 {[%clk 0:00:33.8]} 36... a4 {[%clk 0:01:38.3]}
37. Kd2 {[%clk 0:00:33.2]} 37... a3 {[%clk 0:01:37.5]} 38. Kc2 {[%clk
0:00:32.8]} 38... g5 {[%clk 0:01:35.6]} 39. fxg5+ {[%clk 0:00:30.1]} 39... Kxg5
{[%clk 0:01:34.3]} 40. Kb3 {[%clk 0:00:28.9]} 40... f4 {[%clk 0:01:33]} 41. Kxa3
{[%clk 0:00:28.1]} 41... Kg4 {[%clk 0:01:32]} 42. Kb2 {[%clk 0:00:27.7]} 42...
f3 {[%clk 0:01:31.1]} 43. gxf3+ {[%clk 0:00:23.8]} 43... Kxf3 {[%clk 0:01:29.9]}
44. h4 {[%clk 0:00:22.9]} 44... h6 {[%clk 0:01:28.1]} 45. h5 {[%clk 0:00:21.9]}
45... Kg4 {[%clk 0:01:26.9]} 46. Kc1 {[%clk 0:00:21.2]} 46... Kxh5 {[%clk
0:01:25.8]} 47. Kd1 {[%clk 0:00:20.9]} 47... Kg4 {[%clk 0:01:25]} 48. Ke1 {[%clk
0:00:20.5]} 48... Kg3 {[%clk 0:01:24.5]} 49. Kf1 {[%clk 0:00:20.2]} 49... Kh2
{[%clk 0:01:22.6]} 50. Kf2 {[%clk 0:00:18.7]} 50... h5 {[%clk 0:01:21.1]} 51.
Kf1 {[%clk 0:00:17.3]} 51... h4 {[%clk 0:01:16.7]} 52. Kf2 {[%clk 0:00:17]}
52... h3 {[%clk 0:01:15.7]} 53. Kf1 {[%clk 0:00:16.6]} 1/2-1/2

[Event "Live Chess"]
[Site "Chess.com"]
[Date "2023.05.20"]
[Round "-"]
[White "Jo1ts"]
[Black "Wild_Tiger"]
[Result "0-1"]
[WhiteElo "720"]
[BlackElo "1072"]
[TimeControl "300"]
[EndTime "13:36:15 PDT"]
[Termination "Wild_Tiger won by resignation"]

1. d4 {[%clk 0:04:58.9]} 1... Nc6 {[%clk 0:04:57.5]} 2. Bf4 {[%clk 0:04:57.6]}
2... d6 {[%clk 0:04:55.4]} 3. Nf3 {[%clk 0:04:55.5]} 3... Bg4 {[%clk 0:04:52.4]}
4. e3 {[%clk 0:04:54.4]} 4... Nf6 {[%clk 0:04:49.9]} 5. h3 {[%clk 0:04:51.4]}
5... Bh5 {[%clk 0:04:47.6]} 6. g4 {[%clk 0:04:48.8]} 6... Bg6 {[%clk 0:04:46.1]}
7. Bd3 {[%clk 0:04:45.6]} 7... e5 {[%clk 0:04:37.5]} 8. Bxg6 {[%clk 0:04:43.6]}
8... hxg6 {[%clk 0:04:34.7]} 9. dxe5 {[%clk 0:04:38.9]} 9... Nxe5 {[%clk
0:04:22.4]} 10. Nxe5 {[%clk 0:04:35.7]} 10... dxe5 {[%clk 0:04:21.4]} 11. Qxd8+
{[%clk 0:04:33.7]} 11... Rxd8 {[%clk 0:04:21.1]} 12. Bxe5 {[%clk 0:04:32.2]}
12... Bb4+ {[%clk 0:04:13.2]} 13. Nc3 {[%clk 0:04:29.6]} 13... Rd5 {[%clk
0:03:55.3]} 14. a3 {[%clk 0:04:19.7]} 14... Rxe5 {[%clk 0:03:18.5]} 15. axb4
{[%clk 0:04:14.3]} 15... a6 {[%clk 0:03:13.5]} 16. O-O {[%clk 0:04:09.5]} 16...
Rxh3 {[%clk 0:03:07]} 17. Kg2 {[%clk 0:04:05.2]} 17... Rh7 {[%clk 0:02:59.1]}
18. Rh1 {[%clk 0:03:55.8]} 18... Rxh1 {[%clk 0:02:49.7]} 19. Rxh1 {[%clk
0:03:55.7]} 19... Nxg4 {[%clk 0:02:48.2]} 20. Kf3 {[%clk 0:03:49.9]} 20... Nh6
{[%clk 0:02:37.3]} 21. Ne2 {[%clk 0:03:32.5]} 21... Rf5+ {[%clk 0:02:26]} 22.
Kg2 {[%clk 0:03:30.7]} 22... Ng4 {[%clk 0:02:21.9]} 23. Rf1 {[%clk 0:03:21.8]}
23... Ke7 {[%clk 0:02:10]} 24. f3 {[%clk 0:03:16.2]} 24... Nxe3+ {[%clk
0:02:06.1]} 25. Kf2 {[%clk 0:03:10.6]} 25... Nxf1 {[%clk 0:02:03.9]} 26. Kxf1
{[%clk 0:03:10.5]} 26... Rxf3+ {[%clk 0:02:02.7]} 27. Ke1 {[%clk 0:03:09.8]}
27... g5 {[%clk 0:01:52.2]} 28. c3 {[%clk 0:03:08.7]} 28... g4 {[%clk
0:01:50.1]} 0-1

[Event "Live Chess"]
[Site "Chess.com"]
[Date "2023.05.20"]
[Round "-"]
[White "KeithArkell"]
[Black "Singapourfeuj"]
[Result "1-0"]
[WhiteElo "2615"]
[BlackElo "2238"]
[TimeControl "300"]
[EndTime "13:36:20 PDT"]
[Termination "KeithArkell won by resignation"]

1. d4 {[%clk 0:04:58.3]} 1... Nf6 {[%clk 0:04:57.8]} 2. Nf3 {[%clk 0:04:57.5]}
2... g6 {[%clk 0:04:54.5]} 3. c4 {[%clk 0:04:56.5]} 3... Bg7 {[%clk 0:04:53.2]}
4. g3 {[%clk 0:04:56]} 4... O-O {[%clk 0:04:51.9]} 5. Bg2 {[%clk 0:04:55.5]}
5... d6 {[%clk 0:04:51]} 6. Nc3 {[%clk 0:04:54.9]} 6... a6 {[%clk 0:04:50.1]} 7.
O-O {[%clk 0:04:54]} 7... Nbd7 {[%clk 0:04:48.5]} 8. d5 {[%clk 0:04:52.6]} 8...
e5 {[%clk 0:04:45.3]} 9. dxe6 {[%clk 0:04:51.6]} 9... fxe6 {[%clk 0:04:42.3]}
10. h3 {[%clk 0:04:50.4]} 10... e5 {[%clk 0:04:39.9]} 11. Ng5 {[%clk 0:04:44.9]}
11... Nc5 {[%clk 0:04:38.2]} 12. Bd5+ {[%clk 0:04:41.2]} 12... Kh8 {[%clk
0:04:36.5]} 13. b4 {[%clk 0:04:31.6]} 13... h6 {[%clk 0:04:27.7]} 14. bxc5
{[%clk 0:04:30.7]} 14... hxg5 {[%clk 0:04:26.6]} 15. Bxg5 {[%clk 0:04:25.9]}
15... dxc5 {[%clk 0:04:25.3]} 16. Bg2 {[%clk 0:04:24.7]} 16... c6 {[%clk
0:04:14.9]} 17. Qxd8 {[%clk 0:04:22.2]} 17... Rxd8 {[%clk 0:04:13.7]} 18. Ne4
{[%clk 0:04:21.1]} 18... Rf8 {[%clk 0:04:05.5]} 19. Nxf6 {[%clk 0:04:18.5]}
19... Bxf6 {[%clk 0:04:04.5]} 20. Bxf6+ {[%clk 0:04:17.7]} 20... Rxf6 {[%clk
0:04:03.5]} 21. Rfd1 {[%clk 0:04:15.5]} 21... Be6 {[%clk 0:04:01.9]} 22. Rab1
{[%clk 0:04:07.2]} 22... Rb8 {[%clk 0:03:59.7]} 23. Bxc6 {[%clk 0:04:04.6]}
23... Bxc4 {[%clk 0:03:56.3]} 24. Rxb7 {[%clk 0:04:00.6]} 24... Rxb7 {[%clk
0:03:54.6]} 25. Bxb7 {[%clk 0:04:00]} 25... Bxe2 {[%clk 0:03:52.5]} 26. Rc1
{[%clk 0:03:59.3]} 26... Rb6 {[%clk 0:03:45.4]} 27. Bd5 {[%clk 0:03:56.9]} 27...
c4 {[%clk 0:03:41.2]} 28. Rc2 {[%clk 0:03:37.8]} 28... Bd3 {[%clk 0:03:39.1]}
29. Rc3 {[%clk 0:03:37.2]} 29... Rb1+ {[%clk 0:03:30]} 30. Kg2 {[%clk
0:03:35.5]} 30... Bf1+ {[%clk 0:03:21.3]} 31. Kf3 {[%clk 0:03:33.7]} 31... Rb2
{[%clk 0:03:16.1]} 32. Bxc4 {[%clk 0:03:27.7]} 32... Bxh3 {[%clk 0:03:11.9]} 33.
Bb3 {[%clk 0:03:24]} 33... Bf5 {[%clk 0:03:08.9]} 34. Rc6 {[%clk 0:03:17.1]}
34... a5 {[%clk 0:03:07.1]} 35. Rc5 {[%clk 0:03:16.1]} 35... a4 {[%clk
0:03:04.2]} 36. Bxa4 {[%clk 0:03:06.2]} 36... e4+ {[%clk 0:03:03.1]} 37. Ke3
{[%clk 0:03:03.5]} 37... Rxa2 {[%clk 0:03:00.7]} 38. Bc2 {[%clk 0:02:49.4]}
38... Kg7 {[%clk 0:02:51.9]} 39. Rc4 {[%clk 0:02:47.3]} 39... Ra3+ {[%clk
0:02:49.7]} 40. Ke2 {[%clk 0:02:45.2]} 40... Bg4+ {[%clk 0:02:46.4]} 41. Kd2
{[%clk 0:02:37.8]} 41... Rf3 {[%clk 0:02:42.5]} 42. Ke1 {[%clk 0:02:36.5]} 42...
Bf5 {[%clk 0:01:57.6]} 43. Bxe4 {[%clk 0:02:35.5]} 43... Bxe4 {[%clk 0:01:55.1]}
44. Rxe4 {[%clk 0:02:34.9]} 44... Ra3 {[%clk 0:01:53.9]} 45. Re5 {[%clk
0:02:33]} 45... Kf6 {[%clk 0:01:52.2]} 46. Rd5 {[%clk 0:02:28.9]} 46... Ra2
{[%clk 0:01:51]} 47. Kf1 {[%clk 0:02:27.9]} 47... Rb2 {[%clk 0:01:47.6]} 48. Kg2
{[%clk 0:02:27]} 48... Ra2 {[%clk 0:01:46.1]} 49. Kf3 {[%clk 0:02:25.7]} 49...
Rb2 {[%clk 0:01:45]} 50. Ke3 {[%clk 0:02:24.1]} 50... Ra2 {[%clk 0:01:43.9]} 51.
f3 {[%clk 0:02:22.9]} 51... g5 {[%clk 0:01:42.1]} 52. Rd6+ {[%clk 0:02:20.8]}
52... Kg7 {[%clk 0:01:40]} 53. Ke4 {[%clk 0:02:19.1]} 53... Ra3 {[%clk
0:01:36.3]} 54. Rd3 {[%clk 0:02:15]} 54... Ra4+ {[%clk 0:01:34.5]} 55. Kf5
{[%clk 0:02:12.9]} 55... Ra5+ {[%clk 0:01:33.1]} 56. Kg4 {[%clk 0:02:12]} 56...
Kg6 {[%clk 0:01:31.7]} 57. Rd6+ {[%clk 0:02:11.2]} 57... Kg7 {[%clk 0:01:30.8]}
58. Re6 {[%clk 0:02:10.4]} 58... Kf7 {[%clk 0:01:29.3]} 59. Rh6 {[%clk
0:02:09.2]} 59... Kg7 {[%clk 0:01:28.3]} 60. Rd6 {[%clk 0:02:06]} 60... Kf7
{[%clk 0:01:26.7]} 61. Kh5 {[%clk 0:02:05.1]} 61... Kg7 {[%clk 0:01:24.9]} 62.
Rg6+ {[%clk 0:02:03.5]} 62... Kf7 {[%clk 0:01:22.5]} 63. Rxg5 {[%clk 0:02:02.9]}
63... Ra3 {[%clk 0:01:21.5]} 64. f4 {[%clk 0:02:01.9]} 64... Ra1 {[%clk
0:01:19.6]} 65. Kg4 {[%clk 0:02:00.9]} 65... Kf6 {[%clk 0:01:18.4]} 66. Rf5+
{[%clk 0:01:59.8]} 66... Kg6 {[%clk 0:01:17.1]} 67. Rc5 {[%clk 0:01:59]} 67...
Ra6 {[%clk 0:01:14.7]} 68. Rh5 {[%clk 0:01:57.9]} 68... Ra3 {[%clk 0:01:12.4]}
69. f5+ {[%clk 0:01:54.8]} 69... Kf6 {[%clk 0:01:11.3]} 70. Rh6+ {[%clk
0:01:54]} 70... Ke5 {[%clk 0:01:10.4]} 71. Re6+ {[%clk 0:01:53.1]} 71... Kd5
{[%clk 0:01:09.7]} 72. Re8 {[%clk 0:01:52.2]} 72... Ra4+ {[%clk 0:01:07.6]} 73.
Kg5 {[%clk 0:01:51.4]} 73... Ra3 {[%clk 0:01:06.8]} 74. g4 {[%clk 0:01:50.8]}
74... Rg3 {[%clk 0:01:05.3]} 75. f6 {[%clk 0:01:50]} 75... Rf3 {[%clk
0:01:02.5]} 76. Kg6 {[%clk 0:01:49.3]} 76... Kd6 {[%clk 0:01:00.2]} 77. f7
{[%clk 0:01:48.2]} 1-0

[Event "Live Chess"]
[Site "Chess.com"]
[Date "2023.05.20"]
[Round "-"]
[White "DmitryVasliev"]
[Black "1600x"]
[Result "0-1"]
[WhiteElo "1668"]
[BlackElo "1793"]
[TimeControl "300"]
[EndTime "13:36:41 PDT"]
[Termination "1600x won by resignation"]

1. d4 {[%clk 0:04:58.3]} 1... d5 {[%clk 0:04:57.7]} 2. Bf4 {[%clk 0:04:55.8]}
2... Nf6 {[%clk 0:04:40.8]} 3. e3 {[%clk 0:04:54.9]} 3... Ne4 {[%clk 0:04:39.2]}
4. Nd2 {[%clk 0:04:53.2]} 4... e5 {[%clk 0:04:27.2]} 5. Bxe5 {[%clk 0:04:47.6]}
5... h5 {[%clk 0:04:25.5]} 6. Nxe4 {[%clk 0:04:45.2]} 6... dxe4 {[%clk 0:04:24]}
7. h3 {[%clk 0:04:40.9]} 7... c6 {[%clk 0:04:21.1]} 8. c3 {[%clk 0:04:38.3]}
8... Nd7 {[%clk 0:04:19.3]} 9. Bh2 {[%clk 0:04:33.4]} 9... Nf6 {[%clk
0:04:16.8]} 10. Be2 {[%clk 0:04:32.6]} 10... Bd6 {[%clk 0:04:14.8]} 11. Bxd6
{[%clk 0:04:28.7]} 11... Qxd6 {[%clk 0:04:11.1]} 12. a3 {[%clk 0:04:24.4]} 12...
Qc7 {[%clk 0:04:04]} 13. Qd2 {[%clk 0:04:15.7]} 13... Be6 {[%clk 0:04:01.7]} 14.
c4 {[%clk 0:04:08.3]} 14... Rd8 {[%clk 0:03:58.9]} 15. Qc3 {[%clk 0:04:06.1]}
15... O-O {[%clk 0:03:55.5]} 16. Bd1 {[%clk 0:03:44.4]} 16... b5 {[%clk
0:03:48.4]} 17. cxb5 {[%clk 0:03:41.9]} 17... Rd6 {[%clk 0:03:37.6]} 18. Ne2
{[%clk 0:03:34.2]} 18... Rb8 {[%clk 0:03:32.3]} 19. a4 {[%clk 0:03:17.5]} 19...
Nd5 {[%clk 0:03:25.5]} 20. Qc2 {[%clk 0:03:09.7]} 20... Qa5+ {[%clk 0:03:23.6]}
21. Kf1 {[%clk 0:03:08.3]} 21... cxb5 {[%clk 0:03:21.2]} 22. Qxe4 {[%clk
0:02:56.3]} 22... f5 {[%clk 0:03:14.9]} 23. Qe5 {[%clk 0:02:38.9]} 23... Qd8
{[%clk 0:03:12.5]} 24. a5 {[%clk 0:02:33.6]} 24... Ne7 {[%clk 0:03:01.7]} 25.
Nf4 {[%clk 0:02:22.4]} 25... Nc6 {[%clk 0:03:00.4]} 26. Qc5 {[%clk 0:02:18.4]}
26... Bc4+ {[%clk 0:02:50.2]} 27. Be2 {[%clk 0:02:14]} 27... Ne7 {[%clk
0:02:45.8]} 28. Bxc4+ {[%clk 0:02:07.3]} 28... bxc4 {[%clk 0:02:44]} 29. Qxc4+
{[%clk 0:02:06.3]} 29... Nd5 {[%clk 0:02:42.8]} 30. Ra2 {[%clk 0:01:39.8]} 30...
Rc8 {[%clk 0:02:40.9]} 31. Qb3 {[%clk 0:01:31.5]} 31... Rc1+ {[%clk 0:02:34.8]}
32. Ke2 {[%clk 0:01:28.5]} 32... Rxh1 {[%clk 0:02:23.4]} 33. Nxh5 {[%clk
0:01:23.4]} 33... Rg1 {[%clk 0:02:19.6]} 34. Nf4 {[%clk 0:01:20.7]} 34... Kh7
{[%clk 0:02:17.4]} 35. Nxd5 {[%clk 0:01:04.8]} 35... Rxd5 {[%clk 0:02:15.8]} 36.
g3 {[%clk 0:01:02.3]} 36... Qd6 {[%clk 0:02:12.4]} 37. Qd3 {[%clk 0:00:51.7]}
37... Qh6 {[%clk 0:02:08.5]} 38. h4 {[%clk 0:00:47.3]} 38... Qh5+ {[%clk
0:02:07]} 39. Kd2 {[%clk 0:00:44]} 39... Rd1+ {[%clk 0:02:03]} 0-1

[Event "Live Chess"]
[Site "Chess.com"]
[Date "2023.05.20"]
[Round "-"]
[White "Delacorta"]
[Black "FlyingChessKestrel13"]
[Result "0-1"]
[WhiteElo "1423"]
[BlackElo "2105"]
[TimeControl "300"]
[EndTime "13:36:43 PDT"]
[Termination "FlyingChessKestrel13 won by resignation"]

1. d4 {[%clk 0:04:57.7]} 1... c5 {[%clk 0:04:58.6]} 2. dxc5 {[%clk 0:04:55.2]}
2... e5 {[%clk 0:04:57.2]} 3. e4 {[%clk 0:04:49.2]} 3... Bxc5 {[%clk 0:04:55.3]}
4. Nf3 {[%clk 0:04:48.1]} 4... d6 {[%clk 0:04:54]} 5. Bc4 {[%clk 0:04:46.9]}
5... Nf6 {[%clk 0:04:49.7]} 6. Bxf7+ {[%clk 0:04:43]} 6... Kxf7 {[%clk
0:04:48.5]} 7. Ng5+ {[%clk 0:04:42]} 7... Kf8 {[%clk 0:04:47.2]} 8. Qf3 {[%clk
0:04:40.5]} 8... Qe7 {[%clk 0:04:43.6]} 9. Bd2 {[%clk 0:04:29.9]} 9... h6 {[%clk
0:04:41.7]} 10. Nh3 {[%clk 0:04:19]} 10... Bg4 {[%clk 0:04:39]} 11. Qb3 {[%clk
0:04:12]} 11... Bxh3 {[%clk 0:04:34.2]} 12. gxh3 {[%clk 0:04:10.5]} 12... Nbd7
{[%clk 0:04:31.6]} 13. Rg1 {[%clk 0:03:52.7]} 13... Rb8 {[%clk 0:04:23.1]} 14.
Na3 {[%clk 0:03:28.3]} 14... Nxe4 {[%clk 0:04:16.6]} 15. Qf3+ {[%clk 0:03:14.5]}
15... Qf6 {[%clk 0:04:11.3]} 16. Qxf6+ {[%clk 0:03:01.6]} 16... Ndxf6 {[%clk
0:04:09.6]} 0-1

[Event "Live Chess"]
[Site "Chess.com"]
[Date "2023.05.20"]
[Round "-"]
[White "trekker123"]
[Black "Duke_of_Bebington"]
[Result "1-0"]
[WhiteElo "2087"]
[BlackElo "1577"]
[TimeControl "300"]
[EndTime "13:36:46 PDT"]
[Termination "trekker123 won by resignation"]

1. e4 {[%clk 0:04:57.5]} 1... e5 {[%clk 0:04:59.1]} 2. Bc4 {[%clk 0:04:54.9]}
2... Nf6 {[%clk 0:04:56.9]} 3. d3 {[%clk 0:04:54]} 3... Nc6 {[%clk 0:04:53.8]}
4. Nf3 {[%clk 0:04:51.8]} 4... Bc5 {[%clk 0:04:45.8]} 5. O-O {[%clk 0:04:49.7]}
5... O-O {[%clk 0:04:44.6]} 6. c3 {[%clk 0:04:46]} 6... Na5 {[%clk 0:04:35.4]}
7. Nxe5 {[%clk 0:04:37.8]} 7... d6 {[%clk 0:04:32.2]} 8. Nxf7 {[%clk 0:04:29.8]}
8... Qe7 {[%clk 0:04:23.5]} 9. Nxd6+ {[%clk 0:04:24.6]} 9... Kh8 {[%clk
0:04:18.4]} 10. Nxc8 {[%clk 0:04:18]} 10... Raxc8 {[%clk 0:04:15.7]} 11. Bb3
{[%clk 0:04:00.7]} 11... Nxb3 {[%clk 0:04:06.2]} 12. axb3 {[%clk 0:03:59.4]}
12... Qe6 {[%clk 0:03:51.5]} 13. Be3 {[%clk 0:03:50]} 13... Bxe3 {[%clk
0:03:40.5]} 14. fxe3 {[%clk 0:03:48.2]} 1-0

[Event "Live Chess"]
[Site "Chess.com"]
[Date "2023.05.20"]
[Round "-"]
[White "EdenHazard8"]
[Black "OSmith06"]
[Result "0-1"]
[WhiteElo "2070"]
[BlackElo "1667"]
[TimeControl "300"]
[EndTime "13:36:48 PDT"]
[Termination "OSmith06 won by resignation"]

1. e4 {[%clk 0:04:59.2]} 1... c6 {[%clk 0:04:58.8]} 2. d4 {[%clk 0:04:58.2]}
2... d5 {[%clk 0:04:58.7]} 3. e5 {[%clk 0:04:57.5]} 3... c5 {[%clk 0:04:57.2]}
4. dxc5 {[%clk 0:04:55.5]} 4... Nc6 {[%clk 0:04:56.4]} 5. f4 {[%clk 0:04:54.6]}
5... Nh6 {[%clk 0:04:54.1]} 6. c3 {[%clk 0:04:52.4]} 6... a6 {[%clk 0:04:48.7]}
7. Be3 {[%clk 0:04:49.5]} 7... Nf5 {[%clk 0:04:45.3]} 8. Bf2 {[%clk 0:04:48.1]}
8... e6 {[%clk 0:04:44.1]} 9. b4 {[%clk 0:04:45.4]} 9... Be7 {[%clk 0:04:41]}
10. Nf3 {[%clk 0:04:44.1]} 10... O-O {[%clk 0:04:39.7]} 11. Nbd2 {[%clk
0:04:37.5]} 11... d4 {[%clk 0:04:29.9]} 12. cxd4 {[%clk 0:04:33.2]} 12... Ncxd4
{[%clk 0:04:28.7]} 13. Nxd4 {[%clk 0:04:33.1]} 13... Nxd4 {[%clk 0:04:27.7]} 14.
Nf3 {[%clk 0:04:31.5]} 14... Nxf3+ {[%clk 0:04:16.8]} 15. Qxf3 {[%clk
0:04:31.4]} 15... Qc7 {[%clk 0:03:58.1]} 16. Bd3 {[%clk 0:04:25.5]} 16... Rd8
{[%clk 0:03:55.1]} 17. O-O {[%clk 0:04:11.9]} 17... Bd7 {[%clk 0:03:52.6]} 18.
Be4 {[%clk 0:04:06.5]} 18... Rab8 {[%clk 0:03:41.2]} 19. Rfd1 {[%clk 0:04:03.8]}
19... Bb5 {[%clk 0:03:37.7]} 20. a4 {[%clk 0:03:53.2]} 20... Rxd1+ {[%clk
0:03:31.3]} 21. Qxd1 {[%clk 0:03:51.4]} 21... Rd8 {[%clk 0:03:26.6]} 22. Qc2
{[%clk 0:03:48.7]} 22... Be8 {[%clk 0:03:06.3]} 23. Bxh7+ {[%clk 0:03:47]} 23...
Kh8 {[%clk 0:03:05.8]} 24. Be4 {[%clk 0:03:42.7]} 24... f6 {[%clk 0:02:57.6]}
25. Qc3 {[%clk 0:03:37.8]} 25... f5 {[%clk 0:02:44.5]} 26. Bf3 {[%clk
0:03:29.6]} 26... b6 {[%clk 0:02:38.7]} 27. Rc1 {[%clk 0:03:25.7]} 27... bxc5
{[%clk 0:02:30.4]} 28. Bxc5 {[%clk 0:03:24.2]} 28... Bxa4 {[%clk 0:02:24.5]} 29.
Bxe7 {[%clk 0:03:05.7]} 29... Qxe7 {[%clk 0:02:24.4]} 30. Qc5 {[%clk 0:03:04.6]}
30... Qd7 {[%clk 0:02:03.2]} 31. Bc6 {[%clk 0:02:49.6]} 31... Bxc6 {[%clk
0:01:47.5]} 32. Qxc6 {[%clk 0:02:49.5]} 32... Qd4+ {[%clk 0:01:44.1]} 33. Kf1
{[%clk 0:02:44.9]} 33... Qxf4+ {[%clk 0:01:41.2]} 34. Ke1 {[%clk 0:02:34.9]}
34... Qxb4+ {[%clk 0:01:23.6]} 35. Kf1 {[%clk 0:02:28.8]} 35... Qf4+ {[%clk
0:01:19.9]} 36. Ke1 {[%clk 0:02:26.9]} 36... Qxe5+ {[%clk 0:01:18.2]} 37. Kf1
{[%clk 0:02:25.9]} 37... Qb5+ {[%clk 0:01:15.4]} 38. Qxb5 {[%clk 0:02:23.5]}
38... axb5 {[%clk 0:01:15.3]} 39. Rb1 {[%clk 0:02:23.3]} 39... Rb8 {[%clk
0:01:12]} 40. Ke2 {[%clk 0:02:22]} 40... g5 {[%clk 0:01:10]} 41. Kd3 {[%clk
0:02:21.9]} 41... Kg7 {[%clk 0:01:09.3]} 42. Kd4 {[%clk 0:02:20.8]} 42... Kf6
{[%clk 0:01:08.6]} 43. g3 {[%clk 0:02:20.1]} 43... e5+ {[%clk 0:01:07.6]} 44.
Kc5 {[%clk 0:02:19]} 44... b4 {[%clk 0:01:06.9]} 45. Rxb4 {[%clk 0:02:17.7]}
45... Rxb4 {[%clk 0:01:05.7]} 46. Kxb4 {[%clk 0:02:17.6]} 46... f4 {[%clk
0:01:04.9]} 47. Kc3 {[%clk 0:02:12.5]} 47... fxg3 {[%clk 0:01:02.5]} 48. hxg3
{[%clk 0:02:12.4]} 48... Kf5 {[%clk 0:01:02.1]} 49. Kd3 {[%clk 0:02:11.8]} 49...
Kg4 {[%clk 0:01:00.9]} 50. Ke4 {[%clk 0:02:10.3]} 50... Kxg3 {[%clk 0:01:00]}
51. Kxe5 {[%clk 0:02:10.2]} 51... Kf3 {[%clk 0:00:57.9]} 52. Kf5 {[%clk
0:02:08.2]} 52... g4 {[%clk 0:00:56.9]} 0-1

[Event "Live Chess"]
[Site "Chess.com"]
[Date "2023.05.20"]
[Round "-"]
[White "rideuv21"]
[Black "f4nomore"]
[Result "1-0"]
[WhiteElo "1814"]
[BlackElo "1378"]
[TimeControl "300"]
[EndTime "13:36:55 PDT"]
[Termination "rideuv21 won on time"]

1. e4 {[%clk 0:04:51.9]} 1... g6 {[%clk 0:04:59.9]} 2. d4 {[%clk 0:04:50.1]}
2... Bg7 {[%clk 0:04:59.8]} 3. Nf3 {[%clk 0:04:48.1]} 3... d6 {[%clk 0:04:58.7]}
4. Bc4 {[%clk 0:04:46.7]} 4... Nf6 {[%clk 0:04:54.1]} 5. Nc3 {[%clk 0:04:43.2]}
5... O-O {[%clk 0:04:52.6]} 6. Bb3 {[%clk 0:04:41.5]} 6... e6 {[%clk 0:04:50.7]}
7. O-O {[%clk 0:04:38.7]} 7... c6 {[%clk 0:04:49.3]} 8. Qe2 {[%clk 0:04:36.4]}
8... d5 {[%clk 0:04:47.9]} 9. e5 {[%clk 0:04:35]} 9... Nfd7 {[%clk 0:04:37.8]}
10. Bg5 {[%clk 0:04:32.7]} 10... Qe8 {[%clk 0:04:36]} 11. Qd2 {[%clk 0:04:30.2]}
11... f6 {[%clk 0:04:30.4]} 12. Bh6 {[%clk 0:04:27.2]} 12... fxe5 {[%clk
0:04:28.9]} 13. Nxe5 {[%clk 0:04:19.2]} 13... Nxe5 {[%clk 0:04:25.7]} 14. dxe5
{[%clk 0:04:19.1]} 14... Qf7 {[%clk 0:04:22.1]} 15. Bxg7 {[%clk 0:04:15]} 15...
Qxg7 {[%clk 0:04:21]} 16. f4 {[%clk 0:04:14.9]} 16... Nd7 {[%clk 0:04:13.7]} 17.
Ne2 {[%clk 0:04:12.1]} 17... c5 {[%clk 0:04:12.3]} 18. c4 {[%clk 0:04:09.9]}
18... d4 {[%clk 0:04:07.6]} 19. Rad1 {[%clk 0:04:06.8]} 19... a5 {[%clk
0:03:59.5]} 20. a4 {[%clk 0:03:57.2]} 20... Nb8 {[%clk 0:03:53]} 21. Ng3 {[%clk
0:03:53.6]} 21... Nc6 {[%clk 0:03:50.1]} 22. Ne4 {[%clk 0:03:47.3]} 22... Bd7
{[%clk 0:03:27.5]} 23. Nf6+ {[%clk 0:02:56.8]} 23... Rxf6 {[%clk 0:03:08.1]} 24.
exf6 {[%clk 0:02:43.1]} 24... Qxf6 {[%clk 0:03:06.6]} 25. Rfe1 {[%clk
0:02:41.6]} 25... Rf8 {[%clk 0:03:02.1]} 26. g3 {[%clk 0:02:38.7]} 26... Nb4
{[%clk 0:02:57.4]} 27. Qe2 {[%clk 0:02:35.8]} 27... Qf5 {[%clk 0:02:42.4]} 28.
Qe5 {[%clk 0:02:26.7]} 28... Qh3 {[%clk 0:02:31.1]} 29. Qd6 {[%clk 0:02:20.4]}
29... Bc6 {[%clk 0:02:27.2]} 30. Qxe6+ {[%clk 0:02:17.9]} 30... Kg7 {[%clk
0:02:23.7]} 31. Qe5+ {[%clk 0:02:16.7]} 31... Rf6 {[%clk 0:02:17.4]} 32. Rd2
{[%clk 0:02:13.1]} 32... Nd3 {[%clk 0:01:37.6]} 33. Qc7+ {[%clk 0:02:01.9]}
33... Kh6 {[%clk 0:01:34.3]} 34. Red1 {[%clk 0:01:46.4]} 34... Bf3 {[%clk
0:00:37.5]} 35. Rf1 {[%clk 0:01:39.7]} 35... Be4 {[%clk 0:00:28.6]} 36. Bc2
{[%clk 0:01:31.6]} 36... Rc6 {[%clk 0:00:24.3]} 37. Qe7 {[%clk 0:01:26.8]} 37...
Bf5 {[%clk 0:00:07.2]} 38. Bxd3 {[%clk 0:01:21.8]} 38... Re6 {[%clk 0:00:04.8]}
39. Qg5+ {[%clk 0:01:12.7]} 39... Kg7 {[%clk 0:00:00.3]} 40. Bxf5 {[%clk
0:01:12.6]} 1-0